[Event "Frauenbundesliga 2021-22"]
[Site "Germany"]
[Date "2022.05.25"]
[Round "9.29"]
[White "Yaghy, Ritta."]
[Black "Frey, Alisa"]
[Result "1/2-1/2"]
[ECO "C47"]
[WhiteElo "2010"]
[BlackElo "1998"]
[Annotator "TA"]
[PlyCount "92"]
[EventDate "2021.11.26"]
[EventType "team-tourn"]
[EventCountry "GER"]
[SourceTitle "playchess.com"]
[Source "ChessBase"]
[SourceQuality "1"]
[WhiteTeam "SK Lehrte"]
[BlackTeam "SV Hemer 1932"]
[WhiteTeamCountry "SYR"]
[BlackTeamCountry "GER"]
[TimeControl "40/5400+30:1800+30"]

{[%evp 17,92,19,18,20,9,11,15,15,71,50,70,68,98,22,111,93,200,169,177,162,164,170,173,155,184,188,365,261,257,254,243,261,255,244,343,337,300,256,329,328,588,613,607,325,468,454,1022,997,789,362,430,430,422,328,328,322,499,297,291,280,829,829,709,640,615,209,209,198,209,209,212,197,199,200,200,204,209]} 1. e4 {[%emt 0:05:03]} e5 {[%emt 0:00:06]} 2. Nf3 {[%emt 0:00:24]} Nc6 {[%emt 0:00:04]} 3. Nc3 {[%emt 0:00:38]} Nf6 {[%emt 0:00:13]} 4. d4 {[%emt 0:01:04]} exd4 {[%emt 0:00:06]} 5. Nxd4 {[%emt 0:00:08]} Bb4 {[%emt 0:00:04]} 6. Nxc6 {[%emt 0:01:25]} bxc6 {[%emt 0:00:06]} 7. Bd3 {[%emt 0:00:05]} O-O {[%emt 0:00:06]} 8. O-O {[%emt 0:00:21]} Re8 {[%emt 0:01:02]} 9. Qf3 {[%emt 0:02:33]} Rb8 {[%emt 0:02:15]} 10. Be3 {[%emt 0:05:15] C47: Scotch Four Knights and Four Knights with 4 g3.} Bd6 {[%emt 0:05:54]} 11. Rab1 {[%emt 0:03:59]} Be5 {[%emt 0:02:35]} 12. Bxa7 {[%emt 0:08:28] [#] The position is equal.} Rb7 $146 {[%emt 0:00:27]} (12... Ra8 $11 {keeps the balance.} 13. Be3 Qe7) ({Predecessor:} 12... Ra8 13. Be3 d5 14. Bg5 Qd6 15. Bxf6 Bxf6 16. exd5 Bxc3 17. bxc3 cxd5 18. Rfd1 g6 {½-½ (42) Dabija,M (2365)-Salati,P (2247) ICCF email 2014}) 13. Be3 $16 {[%emt 0:01:51]} d5 {[%emt 0:04:01] [#] Strongly threatening ...Bg4.} 14. Bg5 $1 {[%emt 0:00:56]} Rb4 {[%emt 0:24:35]} 15. h3 {[%emt 0:11:53]} (15. a3 $16 Rb8 16. exd5) 15... Be6 {[%emt 0:03:44]} (15... Bxc3 $11 {remains equal.} 16. bxc3 dxe4 17. Bxf6 Rxb1 18. Rxb1 Qxd3) 16. a3 {[%emt 0:06:51] White leaves nothing to chance now.} Rd4 {[%emt 0:11:28]} (16... Rb6 $16) 17. Rfe1 {[%emt 0:09:08]} h6 {[%emt 0:07:20]} 18. exd5 {[%emt 0:07:53]} Bxd5 {[%emt 0:07:21]} 19. Bxf6 {[%emt 0:11:42] The board is on fire.} Bxf6 {[%emt 0:03:25]} 20. Nxd5 {[%emt 0:03:54]} Rxe1+ {[%emt 0:05:35]} 21. Rxe1 {[%emt 0:00:11]} cxd5 {[%emt 0:00:16]} (21... Rxd5 22. Bc4 Rd4) 22. c3 {[%emt 0:03:59]} Ra4 {[%emt 0:01:03]} 23. Bb5 $40 {[%emt 0:01:45][%mdl 128] White has strong attack.} Re4 {[%emt 0:00:11]} 24. Rxe4 {[%emt 0:00:08]} dxe4 {[%emt 0:00:04]} 25. Qxe4 $18 {[%emt 0:00:05][%mdl 4096] Endgame KQB-KQB} Qd1+ {[%emt 0:06:14]} (25... Qe7 $142 26. Qc6 Qd6) 26. Bf1 {[%emt 0:00:22]} Qd7 {[%emt 0:00:42] Inhibits Qe8+.} 27. Bd3 {[%emt 0:00:40]} Bg5 {[%emt 0:01:51]} 28. a4 {[%emt 0:00:34][%cal Ba3a4,Ba4a5,Ba5a6][%mdl 32] Black must now prevent a5.} g6 $2 {[%emt 0:01:11]} (28... Bd8 29. a5 c6) 29. a5 {[%emt 0:00:13]} Be7 {[%emt 0:01:15]} 30. Qc4 {[%emt 0:02:21]} c5 {[%emt 0:05:10]} (30... Bd8 {was necessary.} 31. a6 c6 32. Bxg6 Bb6) 31. a6 {[%emt 0:00:38]} Kg7 {[%emt 0:01:57]} (31... Bd8 $142 32. Qe4 Bb6) 32. Qb5 {[%emt 0:00:17]} Qc7 {[%emt 0:00:24]} 33. Be4 {[%emt 0:00:41]} (33. Bc4 $142) 33... Bd6 {[%emt 0:01:08]} 34. Bb7 {[%emt 0:01:43] aiming for a7.} Qe7 {[%emt 0:00:40]} 35. Kf1 {[%emt 0:00:57] Prevents Qe1+. And now a7 would win.} Bb8 {[%emt 0:00:34]} 36. Qb6 {[%emt 0:01:27]} Qd7 {[%emt 0:00:11]} (36... Bc7 {keeps fighting.} 37. Qb5 Qd6) 37. Ke2 {[%emt 0:01:32]} (37. g3 $142) 37... Qe7+ {[%emt 0:03:30]} 38. Kf3 {[%emt 0:02:54] Hoping for a7.} Qf6+ $2 {[%emt 0:00:47]} (38... Bc7 39. Qb5 Qf6+ 40. Ke2 Bb6) 39. Qxf6+ {[%emt 0:00:05]} Kxf6 {[%emt 0:00:03] KB-KB} 40. Ke4 {[%emt 0:00:08]} Ke6 {[%emt 0:00:20]} 41. Kd3 $2 {[%emt 0:33:04]} (41. Bd5+ Ke7 {[#]} 42. Bxf7 $1 {[%mdl 512]}) 41... Kd6 {[%emt 0:32:21] White is clearly better.} 42. Kc4 {[%emt 0:00:11]} Ba7 {[%emt 0:00:00]} 43. Bd5 {[%emt 0:00:00]} f6 {[%emt 0:00:00]} 44. Be4 {[%emt 0:00:00]} g5 {[%emt 0:00:00]} 45. Bb7 {[%emt 0:00:00]} Ke5 {[%emt 0:00:00]} 46. Bc8 {[%emt 0:00:00]} Kd6 {[%emt 0:00:00] Weighted Error Value: White=0.46/Black=0.53} 1/2-1/2

[Event "Frauenbundesliga 2021-22"]
[Site "Germany"]
[Date "2022.05.25"]
[Round "9.30"]
[White "Dartmann Aubanell, Catriona"]
[Black "Grabowski, Petra"]
[Result "1-0"]
[ECO "C01"]
[WhiteElo "1874"]
[BlackElo "1635"]
[Annotator "NA RC COMBH"]
[PlyCount "121"]
[EventDate "2021.11.26"]
[EventType "team-tourn"]
[EventCountry "GER"]
[SourceTitle "playchess.com"]
[Source "ChessBase"]
[SourceQuality "1"]
[WhiteTeam "SV Hemer 1932"]
[BlackTeam "SK Lehrte"]
[WhiteTeamCountry "ESP"]
[BlackTeamCountry "GER"]
[TimeControl "40/5400+30:1800+30"]

1. e4 {[%emt 0:00:05]} e6 {[%emt 0:00:05]} 2. d4 {[%emt 0:00:18]} d5 {[%emt 0:00:08]} 3. Bd3 {[%emt 0:00:17]} dxe4 {[%emt 0:01:52]} 4. Bxe4 {[%emt 0:00:20]} Nf6 {[%emt 0:01:19]} 5. Bf3 {[%emt 0:00:32]} c5 {[%emt 0:01:22]} 6. Ne2 {[%emt 0:01:03]} Nc6 {[%emt 0:01:24]} 7. Be3 {[%emt 0:00:34]} Qb6 {[%emt 0:11:58]} 8. Nbc3 {[%emt 0:15:49]} cxd4 {[%emt 0:05:26]} 9. Nxd4 {[%emt 0:05:11]} Nxd4 {[%emt 0:19:16]} 10. Bxd4 {[%emt 0:02:11]} Bc5 {[%emt 0:03:53]} 11. Bxc5 {[%emt 0:06:19]} Qxc5 {[%emt 0:00:32]} 12. O-O {[%emt 0:02:25]} Qb6 {[%emt 0:07:11]} 13. Na4 {[%emt 0:15:54]} Qc7 {[%emt 0:01:26]} 14. Qd4 {[%emt 0:07:13]} O-O {[%emt 0:08:12]} 15. Nc5 {[%emt 0:04:22]} Rb8 {[%emt 0:05:36]} 16. Ne4 {[%emt 0:11:20]} Nxe4 {[%emt 0:02:15]} 17. Bxe4 {[%emt 0:00:35]} b6 {[%emt 0:05:59]} 18. Rfd1 {[%emt 0:03:25]} Bb7 {[%emt 0:02:19]} 19. Bxb7 {[%emt 0:00:55]} Rxb7 {[%emt 0:01:49]} 20. Rd2 {[%emt 0:01:49]} f6 {[%emt 0:06:27]} 21. Rad1 {[%emt 0:01:31]} Qf7 {[%emt 0:02:36]} 22. Qa4 {[%emt 0:02:34]} b5 {[%emt 0:00:54]} 23. Qe4 {[%emt 0:01:56]} e5 {[%emt 0:03:04]} 24. a3 {[%emt 0:03:48]} g6 {[%emt 0:02:17]} 25. Qc6 {[%emt 0:00:45]} Qc7 {[%emt 0:00:01]} 26. Qe6+ {[%emt 0:04:18]} Qf7 {[%emt 0:00:39]} 27. Qa6 {[%emt 0:03:08]} Re8 {[%emt 0:02:00]} 28. Rd6 {[%emt 0:01:15]} Kg7 {[%emt 0:00:34]} 29. Rxf6 {[%emt 0:01:13]} Qc7 {[%emt 0:02:13]} 30. Rc6 {[%emt 0:01:02]} Qf7 {[%emt 0:00:43]} 31. Qa5 {[%emt 0:02:27]} Ree7 {[%emt 0:00:53]} 32. Rcd6 {[%emt 0:00:58]} Qe8 {[%emt 0:00:58]} 33. Qc3 {[%emt 0:00:46]} Rbc7 {[%emt 0:00:18]} 34. Qd2 {[%emt 0:00:36]} Qf7 {[%emt 0:00:24]} 35. h3 {[%emt 0:00:21]} Qf5 {[%emt 0:00:07]} 36. c3 {[%emt 0:00:36]} Rf7 {[%emt 0:00:13]} 37. Rd5 {[%emt 0:00:29]} Rb7 {[%emt 0:00:47]} 38. Qe2 {[%emt 0:00:19]} Kg8 {[%emt 0:01:40]} 39. Rxe5 {[%emt 0:00:26]} Qf6 {[%emt 0:00:01]} 40. Re8+ {[%emt 0:00:37]} Kg7 {[%emt 0:00:22]} 41. Qe5 {[%emt 0:03:25]} Qxe5 {[%emt 0:02:15]} 42. Rxe5 {[%emt 0:00:27]} Rf6 {[%emt 0:00:55]} 43. Rdd5 {[%emt 0:02:07]} a6 {[%emt 0:00:20]} 44. f3 {[%emt 0:01:11]} Rc7 {[%emt 0:01:05]} 45. Kf2 {[%emt 0:01:21]} Rfc6 {[%emt 0:00:54]} 46. Ke3 {[%emt 0:00:33]} Kf6 {[%emt 0:00:30]} 47. f4 {[%emt 0:03:46]} Kf7 {[%emt 0:04:30]} 48. g4 {[%emt 0:03:18]} Kf6 {[%emt 0:03:06]} 49. h4 {[%emt 0:01:28]} h6 {[%emt 0:01:31]} 50. h5 {[%emt 0:03:20]} gxh5 {[%emt 0:00:55]} 51. Rxh5 {[%emt 0:00:13]} Kg6 {[%emt 0:01:52]} 52. Rhe5 {[%emt 0:04:18]} Rf7 {[%emt 0:00:28]} 53. Re8 {[%emt 0:01:10]} Rcf6 {[%emt 0:01:14]} 54. f5+ {[%emt 0:01:36]} Kg5 {[%emt 0:02:13]} 55. Rg8+ {[%emt 0:01:03]} Kh4 {[%emt 0:00:09]} 56. Kf4 {[%emt 0:03:48]} (56. Kf3 $142 Kh3 57. Rd1) 56... Kh3 {[%emt 0:03:58]} 57. g5 {[%emt 0:01:13]} (57. Rd3+ $142 Kg2 58. Re8 Rxf5+ 59. gxf5 Rg7 60. Rd2+ Kh1 61. Re1+ Rg1 62. Rxg1+ Kxg1 63. f6) 57... hxg5+ {[%emt 0:01:19]} 58. Rxg5 {[%emt 0:00:15]} Rh6 {[%emt 0:04:08]} 59. Rd3+ {[%emt 0:01:00]} Kh2 {[%emt 0:00:20]} 60. Rd2+ {[%emt 0:00:25]} Kh1 {[%emt 0:01:00]} 61. Kg3 {[%emt 0:00:19]} 1-0

[Event "Frauenbundesliga 2021-22"]
[Site "Germany"]
[Date "2022.05.28"]
[Round "10.1"]
[White "Klek, Hanna Marie"]
[Black "Osmak, Yuliia"]
[Result "1-0"]
[ECO "B12"]
[WhiteElo "2362"]
[BlackElo "2428"]
[Annotator "TA"]
[PlyCount "159"]
[EventDate "2021.11.26"]
[EventType "team-tourn"]
[EventCountry "GER"]
[SourceTitle "playchess.com"]
[Source "ChessBase"]
[SourceQuality "1"]
[WhiteTeam "Deizisau"]
[BlackTeam "Bad Koenigshofen"]
[TimeControl "40/5400+30:1800+30"]

{[%evp 15,159,20,30,16,50,0,2,2,34,0,0,0,16,2,2,0,12,11,14,6,50,62,122,63,62,52,34,24,102,122,102,90,90,82,101,97,166,189,130,0,0,0,111,70,273,215,212,220,227,187,345,324,300,176,166,176,172,167,169,170,164,135,300,314,414,432,413,432,450,441,443,440,405,425,446,402,424,417,409,383,388,389,502,327,334,353,343,331,354,343,344,304,592,584,593,588,588,566,573,566,572,565,542,157,161,0,516,247,227,168,276,153,153,153,153,153,153,153,153,153,29960,29961,29960,29959,29959,147,147,147,147,147,147,147,147,147,147,147,29969,29971,29980,29981,29981,29982,29982,29983,29983,29984]} 1. e4 {[%emt 0:00:03]} c6 {[%emt 0:00:06]} 2. d4 {[%emt 0:00:05]} d5 {[%emt 0:00:05]} 3. e5 {[%emt 0:00:05]} Bf5 {[%emt 0:00:06]} 4. h4 {[%emt 0:00:06]} h5 {[%emt 0:00:04]} 5. c4 {[%emt 0:00:05]} e6 {[%emt 0:00:46]} 6. Nc3 {[%emt 0:00:09]} Ne7 {[%emt 0:04:35]} 7. Bg5 {[%emt 0:02:05]} dxc4 {[%emt 0:02:32] 7...Qb6 is the hot move.} 8. Bxc4 {[%emt 0:00:21]} Nd7 {[%emt 0:00:34]} 9. Nge2 {[%emt 0:03:20] B12: Caro-Kann: Advance Variation.} Nb6 {[%emt 0:01:37]} 10. Bd3 {[%emt 0:02:40]} (10. Bb3 $14 {deserves consideration.}) 10... Qd7 $1 $11 {[%emt 0:16:21]} 11. Ne4 {[%emt 0:08:02] [#] The position is equal.} Ned5 $146 {[%emt 0:02:12]} (11... Bxe4 $5 12. Bxe4 Nf5 $11) ({Predecessor:} 11... Bxe4 12. Bxe4 Nbd5 13. Ng3 g6 14. O-O Nf5 15. Nxf5 exf5 16. Bf3 Be7 17. Bxd5 Qxd5 18. Bxe7 Kxe7 {½-½ (32) Narendran,G (2127)-Hart,A (1952) Novi Sad 2019}) 12. O-O {[%emt 0:03:49]} Bxe4 {[%emt 0:02:47]} 13. Bxe4 {[%emt 0:00:11]} Be7 {[%emt 0:00:04]} 14. Qc1 {[%emt 0:07:54]} O-O-O {[%emt 0:09:22]} 15. Bf3 {[%emt 0:04:21]} f6 {[%emt 0:05:03]} 16. exf6 {[%emt 0:01:03]} gxf6 {[%emt 0:00:14]} 17. Bd2 {[%emt 0:03:28]} Rdg8 {[%emt 0:02:06]} 18. a4 $1 {[%emt 0:03:36]} Na8 {[%emt 0:02:11]} (18... Kb8 $14) 19. Qc4 {[%emt 0:05:06]} ({White should try} 19. b4 $1 $16) 19... Nab6 $14 {[%emt 0:08:48]} 20. Qb3 {[%emt 0:02:45]} Na8 {[%emt 0:00:32]} 21. Rfe1 {[%emt 0:12:29]} f5 {[%emt 0:04:25]} (21... Nac7 $11) 22. Nf4 $16 {[%emt 0:09:26][%cal Be2f4,Bf4d3,Bd3e5][%mdl 32]} Nac7 {[%emt 0:00:31]} 23. Nd3 {[%emt 0:02:21]} Bd6 {[%emt 0:05:54]} 24. Bg5 {[%emt 0:04:23] Prevents Qe7.} Qg7 {[%emt 0:06:04]} 25. Ne5 {[%emt 0:04:48]} Be7 {[%emt 0:00:54]} (25... Bxe5 $16 {might work better.} 26. Rxe5 (26. dxe5 Qf8 $14) 26... Qd7) 26. a5 $1 $18 {[%emt 0:02:34][%cal Oa5a6]} a6 {[%emt 0:00:52]} 27. Qc4 {[%emt 0:05:24] White is much more active.} (27. Rac1 $1 $16 {[%cal Oe5c6] Black must now prevent Nxc6!} Bxg5 28. hxg5 Qxg5 29. Nxc6 $1 (29. Nf7 Qf4 $14)) 27... Bxg5 $11 {[%emt 0:01:56]} 28. hxg5 {[%emt 0:00:05]} Qe7 {[%emt 0:00:07]} (28... Qxg5 $11 29. Nxc6 Rg7) 29. g6 {[%emt 0:00:47]} Qb4 $2 {[%emt 0:01:12]} (29... Rg7 $14) 30. Qxb4 {[%emt 0:01:02]} Nxb4 {[%emt 0:00:02] Pair of Knights!} 31. Ra4 $1 {[%emt 0:00:17]} Nbd5 {[%emt 0:01:27]} 32. Nf7 {[%emt 0:00:14] Hoping for Bxd5.} Nf4 {[%emt 0:01:24]} (32... Ne7 33. Nd6+ (33. Nxh8 Rxh8 34. g7 Rh7 $16) 33... Kd7 34. Nxb7 Rxg6 35. Nc5+ Kd6) 33. Nxh8 {[%emt 0:01:26]} Rxh8 {[%emt 0:00:03]} 34. g7 {[%emt 0:03:20]} (34. d5 $142 Nfxd5 35. Bxd5 cxd5 36. Re3) 34... Rg8 $18 {[%emt 0:00:03]} 35. g3 {[%emt 0:00:42]} Rxg7 {[%emt 0:00:06]} 36. Kf1 $1 $36 {[%emt 0:00:51][%mdl 2048] Keeping Black busy.} Nfd5 {[%emt 0:03:31]} 37. Bxh5 {[%emt 0:02:35]} f4 {[%emt 0:00:03]} 38. g4 {[%emt 0:01:57]} f3 $2 {[%emt 0:02:40]} (38... Nf6 $16 39. Ke2 Ncd5) 39. Ra3 {[%emt 0:01:02]} Nb5 {[%emt 0:00:26]} 40. Rxf3 {[%emt 0:00:40]} Nxd4 {[%emt 0:00:05]} 41. Rf7 {[%emt 0:16:59]} Rxf7 {[%emt 0:04:42]} 42. Bxf7 {[%emt 0:00:08][%mdl 4096] Endgame KRB-KNN} Kd7 {[%emt 0:00:02]} 43. Re4 {[%emt 0:03:21]} c5 {[%emt 0:00:22]} 44. g5 {[%emt 0:00:35]} Ke7 {[%emt 0:01:11]} 45. Bh5 {[%emt 0:01:42]} Nb3 {[%emt 0:04:34] ...Nd2+ is the strong threat.} 46. Rh4 {[%emt 0:00:47]} Nxa5 {[%emt 0:00:41]} 47. Bf3 {[%emt 0:00:51] Strongly threatening Bxd5.} Kf7 {[%emt 0:01:06]} 48. Be4 {[%emt 0:03:46]} b5 {[%emt 0:02:16]} 49. Rh7+ {[%emt 0:00:55]} Kg8 {[%emt 0:00:17]} 50. Ra7 {[%emt 0:01:34]} Nf4 {[%emt 0:00:55]} 51. Ke1 {[%emt 0:02:31]} (51. Rxa6 Nc4) 51... Nc4 {[%emt 0:01:09]} 52. b3 {[%emt 0:00:17]} (52. Rxa6 Nxb2 53. Rb6 Nc4 54. Rxb5 Nd6 $18) 52... Na5 {[%emt 0:01:40]} 53. Bc2 {[%emt 0:00:43]} (53. Rxa6 $6 Nxb3 54. Rb6 Nd4 55. Rb8+ Kg7 56. Rb7+ Kh8 $18) 53... c4 $2 {[%emt 0:02:39]} (53... Nc6 {was called for.}) 54. bxc4 {[%emt 0:00:40]} Nxc4 {[%emt 0:00:03]} 55. Rxa6 {[%emt 0:00:17]} Ne5 {[%emt 0:00:37]} 56. Ra8+ {[%emt 0:00:37]} Kg7 {[%emt 0:00:16]} 57. Ra7+ {[%emt 0:00:04]} Kg8 {[%emt 0:01:19]} 58. Be4 {[%emt 0:01:05] Inhibits Nf3+.} Nh3 {[%emt 0:01:24]} 59. Ra8+ $2 {[%emt 0:01:51]} (59. Ra3 $18 {has better winning chances.} Nf4 60. Ra5) 59... Kg7 {[%emt 0:00:13]} 60. Ra7+ $2 {[%emt 0:00:03]} (60. Bb1) 60... Kg8 $1 {[%emt 0:00:03]} 61. g6 {[%emt 0:01:13]} (61. Ra3 $142 Nf4 62. Ra5) 61... Nf4 {[%emt 0:00:15]} 62. Rb7 {[%emt 0:00:48]} Nexg6 {[%emt 0:00:26]} (62... Nfxg6 $142 63. Bxg6 Nxg6) 63. Bxg6 {[%emt 0:00:26]} (63. Kd2 $18) 63... Nxg6 {[%emt 0:00:57] KR-KN} 64. Kd2 {[%emt 0:00:10]} (64. Rxb5 Kg7 65. Ke2 Kf6) 64... b4 {[%emt 0:04:48]} 65. Kd3 {[%emt 0:00:53]} b3 {[%emt 0:02:20]} 66. Kd4 {[%emt 0:00:33]} ({Don't take} 66. Rxb3 Kf7 67. Kd4 Ke7 $18) 66... b2 {[%emt 0:00:33]} 67. Kc5 {[%emt 0:00:48]} ({Much less strong is} 67. Rxb2 Kf7 68. Rb7+ Kf6 $18) 67... b1=Q $2 {[%emt 0:11:32]} (67... Nf4 $16 68. Kd4 (68. Rxb2 Nd3+ 69. Kd6 Nxb2 $11) 68... b1=B 69. Rxb1 Kg7) 68. Rxb1 {[%emt 0:00:04]} Kf7 {[%emt 0:00:02] [#]} 69. Kd6 $1 {[%emt 0:00:21]} Kf6 {[%emt 0:01:18]} 70. Re1 $2 {[%emt 0:00:30]} (70. Rb8 {mates} Kf5 71. Re8 e5 72. Re6 Nf4 73. Rxe5+ Kg6 74. Re3 Kf6 75. Re8) 70... e5 $16 {[%emt 0:00:45]} 71. Rg1 {[%emt 0:01:49][%cal Og1g6] White threatens Rxg6+! and mate.} Nf4 {[%emt 0:00:40]} 72. Rg8 {[%emt 0:00:26] White wants to mate with Rf8+.} Kf5 {[%emt 0:01:33]} 73. f3 {[%emt 0:01:03]} Nd3 {[%emt 0:05:23]} 74. Rf8+ {[%emt 0:00:05]} Kg5 {[%emt 0:00:09] [#]} 75. Kd5 $1 {[%emt 0:00:23]} Nf4+ $2 {[%emt 0:00:05][%mdl 8192]} (75... Kg6 $16 76. Ke4 Nc5+ 77. Kd5 Nd3) 76. Ke4 {[%emt 0:00:18] White mates.} Ng6 {[%emt 0:00:10]} 77. Rg8 {[%emt 0:00:47]} Kf6 {[%emt 0:00:09] [#]} 78. Rxg6+ $1 {[%emt 0:00:04][%mdl 512]} Kxg6 {[%emt 0:00:04]} 79. Kxe5 {[%emt 0:00:05]} Kf7 {[%emt 0:00:04]} 80. Kf5 {[%emt 0:00:04] Weighted Error Value: White=0.32/Black=0.33} 1-0

[Event "Frauenbundesliga 2021-22"]
[Site "Germany"]
[Date "2022.05.28"]
[Round "10.2"]
[White "Schneider, Jana"]
[Black "Gaponenko, Inna"]
[Result "1/2-1/2"]
[ECO "B36"]
[WhiteElo "2303"]
[BlackElo "2332"]
[Annotator "TA"]
[PlyCount "53"]
[EventDate "2021.11.26"]
[EventType "team-tourn"]
[EventCountry "GER"]
[SourceTitle "playchess.com"]
[Source "ChessBase"]
[SourceQuality "1"]
[WhiteTeam "Bad Koenigshofen"]
[BlackTeam "Deizisau"]
[TimeControl "40/5400+30:1800+30"]

{[%evp 36,53,10,9,15,0,0,0,0,0,0,0,0,0,0,0,0,0,0,0]} 1. e4 {[%emt 0:00:04]} c5 {[%emt 0:00:04]} 2. Nf3 {[%emt 0:00:08]} Nc6 {[%emt 0:00:05]} 3. d4 {[%emt 0:00:09]} cxd4 {[%emt 0:00:06]} 4. Nxd4 {[%emt 0:00:06]} g6 {[%emt 0:00:11]} 5. c4 {[%emt 0:00:39]} Nf6 {[%emt 0:00:08]} 6. Nc3 {[%emt 0:00:13]} d6 {[%emt 0:00:07]} 7. Be2 {[%emt 0:00:41]} Nxd4 {[%emt 0:00:09]} 8. Qxd4 {[%emt 0:00:11]} Bg7 {[%emt 0:00:05]} 9. Be3 {[%emt 0:00:58]} O-O {[%emt 0:00:10]} 10. Qd2 {[%emt 0:00:38]} Be6 {[%emt 0:00:16]} 11. Rc1 {[%emt 0:03:54]} Qa5 {[%emt 0:01:06]} 12. f3 {[%emt 0:04:47]} Rfc8 {[%emt 0:00:25]} 13. b3 {[%emt 0:02:15]} a6 {[%emt 0:00:59]} 14. Nd5 {[%emt 0:15:35]} Qxd2+ {[%emt 0:00:38]} 15. Kxd2 {[%emt 0:00:15]} Nxd5 {[%emt 0:00:26]} 16. cxd5 {[%emt 0:02:31]} Bd7 {[%emt 0:00:07]} 17. Rxc8+ {[%emt 0:02:45]} Rxc8 {[%emt 0:00:09]} 18. Rc1 {[%emt 0:00:29]} Rxc1 {[%emt 0:05:41]} 19. Kxc1 $11 {[%emt 0:02:13][%mdl 4096] Endgame KBB-KBB. The position is equal.} f5 {[%emt 0:28:45] B36: Sicilian: Maroczy Bind: Gurgenidze System.} 20. a4 {[%emt 0:05:40] [#]} fxe4 $146 {[%emt 0:07:08]} ({Predecessor:} 20... Be5 21. h3 Kf7 22. Kd2 b5 23. axb5 axb5 24. Bb6 b4 25. Ke3 Bc3 26. Ba6 e6 27. Kd3 fxe4+ 28. fxe4 exd5 29. exd5 {0-1 (36) Paramzina,A (2209)-Nguyen,H (1970) Chess.com INT 2020}) 21. fxe4 {[%emt 0:00:21]} Be5 {[%emt 0:01:56]} 22. h3 {[%emt 0:01:31]} Kf7 {[%emt 0:04:26]} 23. Bg5 {[%emt 0:11:28]} Bf6 {[%emt 0:05:55]} 24. Be3 {[%emt 0:01:29]} Be5 {[%emt 0:07:37]} 25. Bg5 {[%emt 0:02:17]} Bf6 {[%emt 0:00:07]} 26. Bf4 {[%emt 0:04:08]} Bd4 {[%emt 0:10:14]} 27. Bg5 {[%emt 0:02:51] Not much happened in this game.  Weighted Error Value: White=0.02 (flawless) /Black=0.00 (flawless)} 1/2-1/2